fUST/lending_fUST_20251010
["ID","MTS","AMOUNT","RATE_DAILY","PERIOD"]
[390505069,1760067047585,-500.0,0.00016712,2]
[390505071,1760067047597,-501.75503013,0.00016712,2]
[390505073,1760067047606,-500.0,0.00016712,2]
[390505075,1760067047615,-500.0,0.00016712,2]
[390505077,1760067047624,-500.0,0.00016712,2]
[390505079,1760067047633,-500.0,0.00016712,2]
[390505081,1760067047642,-500.0,0.00016712,2]
[390505083,1760067047651,-501.82410616,0.00016712,2]
[390505085,1760067047660,-500.0,0.00016712,2]
[390505086,1760067047669,-1090.62,0.00016712,2]
[390505088,1760067047678,-500.0,0.00016712,2]
[390505090,1760067047687,-501.39167991,0.00016712,2]
[390505092,1760067047697,-721.87,0.00016712,2]
[390505094,1760067047706,-500.0,0.00016712,2]
[390505096,1760067047715,-502.14845717,0.00016712,2]
[390505111,1760067047858,-501.44451044,0.00016712,2]
[390505113,1760067047868,-501.37353305,0.00016712,2]
[390505115,1760067047879,-502.01975218,0.00016712,2]
[390505117,1760067047888,-501.29956999,0.00016712,2]
[390505119,1760067047898,-500.0,0.00016712,2]
[390505121,1760067047907,-500.0,0.00016712,2]
[390505123,1760067047916,-1364.02,0.00016712,2]
[390505125,1760067047926,-500.0,0.00016712,2]
[390505127,1760067047935,-500.0,0.00016712,2]
[390505129,1760067047944,-500.0,0.00016712,2]
[390505131,1760067047953,-500.61482875,0.00016712,2]
[390505133,1760067047963,-529.78508243,0.00016712,2]
[390505134,1760067047972,-151.555572,0.00016712,2]
[390505136,1760067047982,-500.0,0.00016712,2]
[390505138,1760067047992,-500.0,0.00016712,2]
[390505140,1760067048001,-151.0,0.00016712,2]
[390505142,1760067048011,-151.0,0.00016712,2]
[390505144,1760067048024,-500.0,0.00016712,2]
[390505146,1760067048036,-500.0,0.00016712,2]
[390505148,1760067048046,-208.468505,0.00016712,2]
[390505150,1760067048055,-208.468505,0.00016712,2]
[390505152,1760067048065,-208.468505,0.00016712,2]
[390505154,1760067048075,-208.468505,0.00016712,2]
[390505156,1760067048085,-1306.93,0.00016712,2]
[390505158,1760067048094,-208.468505,0.00016712,2]
[390505160,1760067048105,-208.468505,0.00016712,2]
[390505162,1760067048115,-618.43,0.00016712,2]
[390505164,1760067048125,-208.468505,0.00016712,2]
[390505166,1760067048134,-208.468505,0.00016712,2]
[390505168,1760067048143,-500.0,0.00016712,2]
[390505170,1760067048152,-500.0,0.00016712,2]
[390505172,1760067048162,-151.0,0.00016712,2]
[390505174,1760067048171,-151.0,0.00016712,2]
[390505176,1760067048181,-151.0,0.00016712,2]
[390505178,1760067048190,-151.0,0.00016712,2]
[390505180,1760067048200,-151.0,0.00016712,2]
[390505182,1760067048210,-279.947969,0.00016712,2]
[390505184,1760067048219,-977.0,0.00016712,2]
[390505186,1760067048229,-500.0,0.00016712,2]
[390505187,1760067048238,-502.10171528,0.00016712,2]
[390505189,1760067048247,-500.0,0.00016712,2]
[390505191,1760067048257,-500.0,0.00016712,2]
[390505193,1760067048267,-500.0,0.00016712,2]
[390505195,1760067048276,-500.0,0.00016712,2]
[390505197,1760067048286,-500.0,0.00016712,2]
[390505199,1760067048295,-500.0,0.00016712,2]
[390505201,1760067048307,-152.994985,0.00016712,2]
[390505203,1760067048317,-500.0,0.00016712,2]
[390505205,1760067048326,-500.0,0.00016712,2]
[390505207,1760067048335,-500.0,0.00016712,2]
[390505209,1760067048344,-500.0,0.00016712,2]
[390505211,1760067048354,-500.0,0.00016712,2]
[390505212,1760067048364,-501.93488945,0.00016712,2]
[390505214,1760067048373,-500.0,0.00016712,2]
[390505216,1760067048383,-500.0,0.00016712,2]
[390505217,1760067048392,-500.0,0.00016712,2]
[390505219,1760067048401,-500.0,0.00016712,2]
[390505221,1760067048412,-500.0,0.00016712,2]
[390505223,1760067048422,-501.64638071,0.00016712,2]
[390505225,1760067048431,-501.5660037,0.00016712,2]
[390505227,1760067048441,-500.0,0.00016712,2]
[390505229,1760067048451,-501.60101146,0.00016712,2]
[390505231,1760067048460,-501.1665511,0.00016712,2]
[390505233,1760067048470,-500.0,0.00016712,2]
[390505235,1760067048481,-1254.35,0.00016712,2]
[390505237,1760067048492,-500.0,0.00016712,2]
[390505239,1760067048503,-500.0,0.00016712,2]
[390505241,1760067048516,-500.0,0.00016712,2]
[390505243,1760067048526,-500.0,0.00016712,2]
[390505244,1760067048536,-500.0,0.00016712,2]
[390505246,1760067048547,-500.0,0.00016712,2]
[390505248,1760067048562,-500.0,0.00016712,2]
[390505250,1760067048572,-500.0,0.00016712,2]
[390505252,1760067048582,-500.0,0.00016712,2]
[390505254,1760067048593,-293.234204,0.00016712,2]
[390505256,1760067048604,-500.0,0.00016712,2]
[390505258,1760067048614,-500.0,0.00016712,2]
[390505260,1760067048623,-500.0,0.00016712,2]
[390505262,1760067048633,-500.0,0.00016712,2]
[390505264,1760067048643,-500.0,0.00016712,2]
[390505266,1760067048652,-500.0,0.00016712,2]
[390505267,1760067048661,-500.0,0.00016712,2]
[390505269,1760067048671,-1300.53,0.00016712,2]
[390505271,1760067048680,-501.49770499,0.00016712,2]
[390505273,1760067048690,-500.0,0.00016712,2]
[390505275,1760067048700,-500.0,0.00016712,2]
[390505277,1760067048709,-161.091796,0.00016712,2]
[390505279,1760067048720,-500.0,0.00016712,2]
[390505281,1760067048728,-500.0,0.00016712,2]
[390505283,1760067048738,-151.0,0.00016712,2]
[390505285,1760067048747,-151.0,0.00016712,2]
[390505287,1760067048757,-500.0,0.00016712,2]
[390505289,1760067048766,-500.0,0.00016712,2]
[390505291,1760067048776,-151.0,0.00016712,2]
[390505293,1760067048785,-151.0,0.00016712,2]
[390505295,1760067048795,-983.84,0.00016712,2]
[390505297,1760067048809,-152.24932598,0.00016712,2]
[390505299,1760067048818,-7851.8,0.00016712,2]
[390505301,1760067048828,-502.07846543,0.00016712,2]
[390505303,1760067048838,-500.0,0.00016712,2]
[390505305,1760067048847,-500.0,0.00016712,2]
[390505307,1760067048857,-151.0,0.00016712,2]
[390505309,1760067048866,-151.0,0.00016712,2]
[390505311,1760067048875,-500.0,0.00016712,2]
[390505313,1760067048888,-189.113488,0.00016712,2]
[390505315,1760067048897,-500.0,0.00016712,2]
[390505317,1760067048906,-1034.78,0.00016712,2]
[390505319,1760067048915,-500.0,0.00016712,2]
[390505321,1760067048925,-500.0,0.00016712,2]
[390505323,1760067048934,-151.0,0.00016712,2]
[390505324,1760067048943,-151.0,0.00016712,2]
[390505326,1760067048952,-151.0,0.00016712,2]
[390505328,1760067048961,-155.037749,0.00016712,2]
[390505330,1760067048970,-151.0,0.00016712,2]
[390505332,1760067048979,-501.2065231,0.00016712,2]
[390505334,1760067048988,-500.0,0.00016712,2]
[390505336,1760067048997,-500.0,0.00016712,2]
[390505338,1760067049007,-896.78,0.00016712,2]
[390505340,1760067049016,-500.0,0.00016712,2]
[390505342,1760067049025,-500.0,0.00016712,2]
[390505344,1760067049034,-501.55696603,0.00016712,2]
[390505346,1760067049043,-500.0,0.00016712,2]
[390505348,1760067049054,-501.89258517,0.00016712,2]
[390505350,1760067049063,-500.0,0.00016712,2]
[390505352,1760067049072,-1025.52,0.00016712,2]
[390505354,1760067049082,-500.0,0.00016712,2]
[390505356,1760067049091,-500.0,0.00016712,2]
[390505358,1760067049103,-500.0,0.00016712,2]
[390505360,1760067049113,-529.63,0.00016712,2]
[390505361,1760067049124,-500.0,0.00016712,2]
[390505363,1760067049134,-500.0,0.00016712,2]
[390505365,1760067049143,-500.0,0.00016712,2]
[390505367,1760067049153,-500.0,0.00016712,2]
[390505369,1760067049162,-152.298177,0.00016712,2]
[390505370,1760067049170,-500.88673706,0.00016712,2]
[390505371,1760067049179,-500.60334351,0.00016712,2]
[390505372,1760067049188,-500.0,0.00016712,2]
[390505373,1760067049197,-500.0,0.00016712,2]
[390505374,1760067049207,-501.05543227,0.00016712,2]
[390505375,1760067049216,-791.06,0.00016712,2]
[390505376,1760067049225,-500.0,0.00016712,2]
[390505377,1760067049234,-500.0,0.00016712,2]
[390505378,1760067049243,-154.020421,0.00016712,2]
[390505379,1760067049252,-500.0,0.00016712,2]
[390505380,1760067049261,-151.0,0.00016712,2]
[390505381,1760067049270,-151.0,0.00016712,2]
[390505382,1760067049279,-501.06021249,0.00016712,2]
[390505384,1760067049288,-500.0,0.00016712,2]
[390505386,1760067049297,-500.0,0.00016712,2]
[390505388,1760067049309,-261.392589,0.00016712,2]
[390505390,1760067049319,-512.41,0.00016712,2]
[390505392,1760067049328,-500.0,0.00016712,2]
[390505394,1760067049337,-500.0,0.00016712,2]
[390505396,1760067049346,-500.0,0.00016712,2]
[390505398,1760067049355,-500.0,0.00016712,2]
[390505400,1760067049364,-151.0,0.00016712,2]
[390505402,1760067049373,-151.0,0.00016712,2]
[390505404,1760067049382,-500.0,0.00016712,2]
[390505406,1760067049391,-2816.71,0.00016712,2]
[390505408,1760067049400,-500.0,0.00016712,2]
[390505410,1760067049409,-500.0,0.00016712,2]
[390505412,1760067049418,-1747.02,0.00016712,2]
[390505414,1760067049427,-151.0,0.00016712,2]
[390505416,1760067049436,-151.0,0.00016712,2]
[390505418,1760067049446,-2423.98,0.00016712,2]
[390505420,1760067049455,-151.0,0.00016712,2]
[390505422,1760067049464,-151.386704,0.00016712,2]
[390505424,1760067049474,-500.0,0.00016712,2]
[390505426,1760067049483,-500.0,0.00016712,2]
[390505428,1760067049492,-500.0,0.00016712,2]
[390505430,1760067049501,-500.0,0.00016712,2]
[390505432,1760067049511,-151.0,0.00016712,2]
[390505434,1760067049520,-1668.53,0.00016712,2]
[390505436,1760067049530,-151.0,0.00016712,2]
[390505438,1760067049540,-500.0,0.00016712,2]
[390505440,1760067049550,-500.0,0.00016712,2]
[390505442,1760067049562,-500.50058322,0.00016712,2]
[390505444,1760067049571,-359.67318463,0.00016712,2]
[390505446,1760067049580,-500.0,0.00016712,2]
[390505448,1760067049590,-500.0,0.00016712,2]
[390505450,1760067049599,-3689.38,0.00016712,2]
[390505452,1760067049608,-500.0,0.00016712,2]
[390505454,1760067049618,-500.0,0.00016712,2]
[390505456,1760067049627,-500.0,0.00016712,2]
[390505458,1760067049636,-6219.03,0.00016712,2]
[390505460,1760067049645,-500.0,0.00016712,2]
[390505462,1760067049655,-500.91488947,0.00016712,2]
[390505464,1760067049663,-2842.49,0.00016712,2]
[390505466,1760067049672,-930.18,0.00016712,2]
[390505468,1760067049682,-502.26101463,0.00016712,2]
[390505470,1760067049691,-500.0,0.00016712,2]
[390505472,1760067049700,-500.0,0.00016712,2]
[390505474,1760067049709,-500.0,0.00016712,2]
[390505476,1760067049719,-502.31385421,0.00016712,2]
[390505478,1760067049728,-500.0,0.00016712,2]
[390505480,1760067049737,-500.0,0.00016712,2]
[390505482,1760067049746,-500.0,0.00016712,2]
[390505484,1760067049756,-500.0,0.00016712,2]
[390505486,1760067049765,-500.0,0.00016712,2]
[390505488,1760067049774,-500.0,0.00016712,2]
[390505490,1760067049783,-937.72,0.00016712,2]
[390505492,1760067049792,-1009.55,0.00016712,2]
[390505494,1760067049803,-500.0,0.00016712,2]
[390505496,1760067049816,-785.66,0.00016712,2]
[390505498,1760067049825,-500.0,0.00016712,2]
[390505500,1760067049835,-500.0,0.00016712,2]
[390505502,1760067049846,-500.0,0.00016712,2]
[390505504,1760067049855,-500.0,0.00016712,2]
[390505506,1760067049865,-500.0,0.00016712,2]
[390505508,1760067049875,-151.681857,0.00016712,2]
[390505510,1760067049885,-500.0,0.00016712,2]
[390505512,1760067049895,-502.17831471,0.00016712,2]
[390505514,1760067049904,-383.04627743,0.00016712,2]
[390505516,1760067049914,-320.003172,0.00016712,2]
[390505518,1760067049923,-320.003172,0.00016712,2]
[390505520,1760067049932,-502.44828813,0.00016712,2]
[390505522,1760067049942,-5374.97,0.00016712,2]
[390505524,1760067049951,-320.003172,0.00016712,2]
[390505526,1760067049961,-320.003172,0.00016712,2]
[390505528,1760067049977,-320.003172,0.00016712,2]
[390505530,1760067049998,-320.003172,0.00016712,2]
[390505533,1760067050008,-500.0,0.00016712,2]
[390505535,1760067050017,-320.003172,0.00016712,2]
[390505537,1760067050026,-320.003172,0.00016712,2]
[390505539,1760067050035,-151.0,0.00016712,2]
[390505541,1760067050044,-151.0,0.00016712,2]
[390505542,1760067050054,-1091.46,0.00016712,2]
[390505545,1760067050063,-500.0,0.00016712,2]
[390505546,1760067050072,-500.0,0.00016712,2]
[390505548,1760067050080,-500.0,0.00016712,2]
[390505550,1760067050090,-151.0,0.00016712,2]
[390505552,1760067050099,-500.0,0.00016712,2]
[390505554,1760067050107,-151.0,0.00016712,2]
[390505556,1760067050116,-961.78,0.00016712,2]
[390505558,1760067050125,-1180.58,0.00016712,2]
[390505560,1760067050134,-687.76,0.00016712,2]
[390505562,1760067050143,-151.0,0.00016712,2]
[390505564,1760067050151,-1569.85,0.00016712,2]
[390505566,1760067050160,-840.06,0.00016712,2]
[390505568,1760067050169,-151.0,0.00016712,2]
[390505570,1760067050179,-151.0,0.00016712,2]
[390505572,1760067050188,-151.0,0.00016712,2]
[390505574,1760067050197,-842.61,0.00016712,2]
[390505576,1760067050206,-500.0,0.00016712,2]
[390505578,1760067050216,-500.0,0.00016712,2]
[390505580,1760067050225,-500.0,0.00016712,2]
[390505582,1760067050234,-1455.99,0.00016712,2]
[390505584,1760067050243,-500.0,0.00016712,2]
[390505586,1760067050252,-500.0,0.00016712,2]
[390505588,1760067050261,-500.0,0.00016712,2]
[390505590,1760067050271,-500.0,0.00016712,2]
[390505592,1760067050280,-500.0,0.00016712,2]
[390505594,1760067050289,-500.0,0.00016712,2]
[390505596,1760067050298,-4407.34,0.00016712,2]
[390505598,1760067050309,-501.73644491,0.00016712,2]
[390505600,1760067050318,-500.0,0.00016712,2]
[390505602,1760067050327,-500.0,0.00016712,2]
[390505604,1760067050337,-503.3023207,0.00016712,2]
[390505606,1760067050347,-500.0,0.00016712,2]
[390505608,1760067050356,-500.0,0.00016712,2]
[390505610,1760067050364,-500.0,0.00016712,2]
[390505612,1760067050373,-1275.82,0.00016712,2]
[390505614,1760067050383,-748.07,0.00016712,2]
[390505616,1760067050391,-500.0,0.00016712,2]
[390505618,1760067050401,-1127.42,0.00016712,2]
[390505620,1760067050410,-500.0,0.00016712,2]
[390505623,1760067050419,-500.0,0.00016712,2]
[390505625,1760067050428,-500.0,0.00016712,2]
[390505627,1760067050437,-508.07681541,0.00016712,2]
[390505629,1760067050447,-500.0,0.00016712,2]
[390505631,1760067050456,-613.47,0.00016712,2]
[390505632,1760067050465,-3149.72,0.00016712,2]
[390505634,1760067050474,-500.0,0.00016712,2]
[390505636,1760067050484,-500.0,0.00016712,2]
[390505638,1760067050494,-637.86,0.00016712,2]
[390505640,1760067050503,-500.0,0.00016712,2]
[390505642,1760067050513,-500.0,0.00016712,2]
[390505644,1760067050523,-500.0,0.00016712,2]
[390505646,1760067050533,-151.0,0.00016712,2]
[390505648,1760067050542,-151.0,0.00016712,2]
[390505651,1760067050553,-500.0,0.00016712,2]
[390505652,1760067050563,-500.0,0.00016712,2]
[390505654,1760067050572,-232.335434,0.00016712,2]
[390505656,1760067050582,-4201.25,0.00016712,2]
[390505658,1760067050591,-500.60525948,0.00016712,2]
[390505674,1760067050738,-500.0,0.00016712,2]
[390505676,1760067050749,-2177.95,0.00016712,2]
[390505678,1760067050759,-500.0,0.00016712,2]
[390505680,1760067050768,-151.0,0.00016712,2]
[390505682,1760067050778,-151.0,0.00016712,2]
[390505685,1760067050788,-500.0,0.00016712,2]
[390505687,1760067050798,-158.605407,0.00016712,2]
[390505689,1760067050814,-500.0,0.00016712,2]
[390505691,1760067050824,-151.0,0.00016712,2]
[390505693,1760067050834,-151.0,0.00016712,2]
[390505695,1760067050843,-500.0,0.00016712,2]
[390505697,1760067050853,-501.1690776,0.00016712,2]
[390505699,1760067050862,-500.0,0.00016712,2]
[390505701,1760067050872,-500.0,0.00016712,2]
[390505703,1760067050882,-151.0,0.00016712,2]
[390505705,1760067050892,-153.085781,0.00016712,2]
[390505707,1760067050902,-603.19,0.00016712,2]
[390505709,1760067050911,-501.03965201,0.00016712,2]
[390505711,1760067050920,-500.0,0.00016712,2]
[390505713,1760067050929,-500.0,0.00016712,2]
[390505714,1760067050938,-840.96,0.00016712,2]
[390505717,1760067050947,-500.0,0.00016712,2]
[390505718,1760067050956,-500.0,0.00016712,2]
[390505720,1760067050965,-151.0,0.00016712,2]
[390505722,1760067050974,-151.0,0.00016712,2]
[390505724,1760067050983,-501.33157775,0.00016712,2]
[390505726,1760067050993,-151.0,0.00016712,2]
[390505728,1760067051002,-151.0,0.00016712,2]
[390505730,1760067051011,-151.0,0.00016712,2]
[390505732,1760067051020,-151.0,0.00016712,2]
[390505734,1760067051030,-195.834917,0.00016712,2]
[390505736,1760067051039,-501.09182636,0.00016712,2]
[390505738,1760067051048,-500.0,0.00016712,2]
[390505740,1760067051059,-880.64,0.00016712,2]
[390505743,1760067051068,-500.0,0.00016712,2]
[390505745,1760067051078,-500.0,0.00016712,2]
[390505747,1760067051087,-500.0,0.00016712,2]
[390505749,1760067051097,-2925.02,0.00016712,2]
[390505750,1760067051107,-500.0,0.00016712,2]
[390505753,1760067051116,-782.42,0.00016712,2]
[390505755,1760067051126,-500.0,0.00016712,2]
[390505757,1760067051143,-500.0,0.00016712,2]
[390505759,1760067051152,-509.80328601,0.00016712,2]
[390505761,1760067051162,-500.0,0.00016712,2]
[390505763,1760067051173,-501.93253675,0.00016712,2]
[390505765,1760067051182,-220.45133857,0.00016712,2]
[390505767,1760067051191,-500.0,0.00016712,2]
[390505769,1760067051200,-1404.53,0.00016712,2]
[390505771,1760067051210,-200.0,0.00016712,2]
[390505773,1760067051219,-698.81,0.00016712,2]
[390505775,1760067051228,-500.0,0.00016712,2]
[390505777,1760067051237,-500.0,0.00016712,2]
[390505779,1760067051246,-500.0,0.00016712,2]
[390505781,1760067051256,-500.0,0.00016712,2]
[390505783,1760067051265,-1305.47,0.00016712,2]
[390505785,1760067051274,-500.0,0.00016712,2]
[390505787,1760067051283,-500.0,0.00016712,2]
[390505789,1760067051292,-1011.22,0.00016712,2]
[390505791,1760067051303,-500.0,0.00016712,2]
[390505793,1760067051312,-152.401728,0.00016712,2]
[390505795,1760067051321,-500.0,0.00016712,2]
[390505797,1760067051330,-500.0,0.00016712,2]
[390505799,1760067051339,-500.0,0.00016712,2]
[390505801,1760067051348,-500.0,0.00016712,2]
[390505803,1760067051357,-501.00529747,0.00016712,2]
[390505805,1760067051367,-2544.55,0.00016712,2]
[390505807,1760067051376,-826.8,0.00016712,2]
[390505809,1760067051384,-151.0,0.00016712,2]
[390505811,1760067051394,-502.13180974,0.00016712,2]
[390505813,1760067051403,-500.0,0.00016712,2]
[390505815,1760067051412,-151.0,0.00016712,2]
[390505817,1760067051421,-502.17725709,0.00016712,2]
[390505819,1760067051430,-151.0,0.00016712,2]
[390505821,1760067051439,-618.51,0.00016712,2]
[390505823,1760067051448,-849.84,0.00016712,2]
[390505825,1760067051457,-481.71365748,0.00016712,2]
[390505827,1760067051467,-151.0,0.00016712,2]
[390505829,1760067051475,-1923.9,0.00016712,2]
[390505831,1760067051484,-151.0,0.00016712,2]
[390505833,1760067051494,-813.97,0.00016712,2]
[390505835,1760067051503,-151.0,0.00016712,2]
[390505837,1760067051512,-500.0,0.00016712,2]
[390505839,1760067051521,-151.0,0.00016712,2]
[390505841,1760067051533,-500.0,0.00016712,2]
[390505843,1760067051543,-500.0,0.00016712,2]
[390505845,1760067051552,-3527.12,0.00016712,2]
[390505847,1760067051561,-500.86053499,0.00016712,2]
[390505849,1760067051570,-500.0,0.00016712,2]
[390505851,1760067051579,-500.0,0.00016712,2]
[390505853,1760067051590,-1011.01,0.00016712,2]
[390505856,1760067051599,-500.0,0.00016712,2]
[390505857,1760067051608,-500.0,0.00016712,2]
[390505859,1760067051617,-500.0,0.00016712,2]
[390505861,1760067051626,-2369.71,0.00016712,2]
[390505863,1760067051635,-500.0,0.00016712,2]
[390505865,1760067051644,-500.0,0.00016712,2]
[390505868,1760067051653,-500.0,0.00016712,2]
[390505870,1760067051662,-500.0,0.00016712,2]
[390505872,1760067051671,-500.65017267,0.00016712,2]
[390505874,1760067051681,-500.0,0.00016712,2]
[390505876,1760067051690,-707.25,0.00016712,2]
[390505878,1760067051699,-500.0,0.00016712,2]
[390505880,1760067051708,-500.0,0.00016712,2]
[390505882,1760067051717,-536.43,0.00016712,2]
[390505883,1760067051727,-217.454934,0.00016712,2]
[390505885,1760067051736,-477.73133279,0.00016712,2]
[390505887,1760067051746,-217.454934,0.00016712,2]
[390505889,1760067051754,-500.0,0.00016712,2]
[390505891,1760067051763,-661.1,0.00016712,2]
[390505893,1760067051772,-217.454934,0.00016712,2]
[390505895,1760067051781,-502.29888454,0.00016712,2]
[390505897,1760067051791,-500.0,0.00016712,2]
[390505899,1760067051801,-217.454934,0.00016712,2]
[390505902,1760067051813,-500.0,0.00016712,2]
[390505903,1760067051822,-2000.7,0.00016712,2]
[390505905,1760067051831,-500.0,0.00016712,2]
[390505907,1760067051843,-500.0,0.00016712,2]
[390505910,1760067051852,-500.0,0.00016712,2]
[390505912,1760067051862,-151.0,0.00016712,2]
[390505914,1760067051872,-500.0,0.00016712,2]
[390505916,1760067051882,-598.14865491,0.00016712,2]
[390505918,1760067051892,-151.0,0.00016712,2]
[390505920,1760067051901,-151.0,0.00016712,2]
[390505922,1760067051910,-301.010174,0.00016712,2]
[390505924,1760067051920,-500.0,0.00016712,2]
[390505926,1760067051929,-301.010174,0.00016712,2]
[390505928,1760067051938,-151.0,0.00016712,2]
[390505930,1760067051948,-500.0,0.00016712,2]
[390505931,1760067051958,-349.14356947,0.00016712,2]
[390505934,1760067051967,-151.0,0.00016712,2]
[390505936,1760067051977,-151.0,0.00016712,2]
[390505938,1760067051987,-301.010174,0.00016712,2]
[390505940,1760067051996,-301.010174,0.00016712,2]
[390505941,1760067052007,-185.618188,0.00016712,2]
[390505944,1760067052018,-560.0,0.00016712,2]
[390505945,1760067052027,-500.0,0.00016712,2]
[390505948,1760067052037,-301.010174,0.00016712,2]
[390505950,1760067052047,-539.06,0.00016712,2]
[390505952,1760067052059,-301.010174,0.00016712,2]
[390505953,1760067052068,-1215.57,0.00016712,2]
[390505955,1760067052078,-301.010174,0.00016712,2]
[390505957,1760067052088,-301.010174,0.00016712,2]
[390505959,1760067052098,-500.0,0.00016712,2]
[390505961,1760067052107,-500.0,0.00016712,2]
[390505963,1760067052116,-500.0,0.00016712,2]
[390505965,1760067052125,-1042.97,0.00016712,2]
[390505967,1760067052134,-151.0,0.00016712,2]
[390505969,1760067052144,-151.0,0.00016712,2]
[390505971,1760067052154,-500.0,0.00016712,2]
[390505973,1760067052163,-500.0,0.00016712,2]
[390505975,1760067052173,-155.628286,0.00016712,2]
[390505977,1760067052183,-500.0,0.00016712,2]
[390505979,1760067052194,-151.0,0.00016749,2]
[390505981,1760067052204,-151.0,0.00016749,2]
[390505983,1760067052214,-198.13486,0.00016749,2]
[390505985,1760067052224,-151.0,0.00016749,2]
[390505987,1760067052234,-151.0,0.00016749,2]
[390505989,1760067052243,-151.0,0.00016749,2]
[390505991,1760067052252,-151.0,0.00016749,2]
[390505993,1760067052262,-217.454934,0.00016749,2]
[390505995,1760067052272,-217.454934,0.00016749,2]
[390505997,1760067052282,-217.454934,0.00016749,2]
[390505999,1760067052291,-217.454934,0.00016749,2]
[390506001,1760067052300,-151.0,0.00016749,2]
[390506003,1760067052312,-151.0,0.00016749,2]
[390506005,1760067052322,-2000.0,0.00016755,2]
[390506007,1760067052332,-2000.0,0.00016755,2]
[390506009,1760067052342,-2000.0,0.00016755,2]
[390506011,1760067052351,-2000.0,0.00016755,2]
[390506013,1760067052360,-2000.0,0.00016755,2]
[390506015,1760067052370,-2000.0,0.00016755,2]
[390506017,1760067052379,-2000.0,0.00016755,2]
[390506019,1760067052388,-2000.0,0.00016755,2]
[390506021,1760067052397,-2000.0,0.00016755,2]
[390506022,1760067052406,-2000.0,0.00016755,2]
[390506024,1760067052415,-2000.0,0.00016755,2]
[390506026,1760067052424,-2000.0,0.00016755,2]
[390506028,1760067052433,-300.0,0.00016765,2]
[390506030,1760067052443,-300.0,0.00016765,2]
[390506032,1760067052452,-300.0,0.00016765,2]
[390506034,1760067052461,-300.0,0.00016765,2]
[390506036,1760067052470,-300.0,0.00016765,2]
[390506038,1760067052480,-300.0,0.00016765,2]
[390506040,1760067052489,-300.0,0.00016765,2]
[390506042,1760067052498,-300.0,0.00016765,2]
[390506044,1760067052507,-300.0,0.00016765,2]
[390506046,1760067052517,-300.0,0.00016765,2]
[390506048,1760067052526,-300.0,0.00016765,2]
[390506050,1760067052535,-300.0,0.00016765,2]
[390506052,1760067052544,-300.0,0.00016765,2]
[390506053,1760067052555,-300.0,0.00016765,2]
[390506055,1760067052564,-300.0,0.00016765,2]
[390506057,1760067052575,-600.0,0.00016765,2]
[390506059,1760067052584,-8815.26,0.00016765,2]
[390506061,1760067052593,-151.0,0.00016766,2]
[390506063,1760067052602,-151.904868,0.00016766,2]
[390506065,1760067052611,-151.0,0.00016766,2]
[390506067,1760067052620,-151.0,0.00016766,2]
[390506069,1760067052629,-8815.26,0.00016772,2]
[390506071,1760067052639,-151.0,0.000168,2]